fUST/lending_fUST_20250829
["ID","MTS","AMOUNT","RATE_DAILY","PERIOD"]
[381943135,1756431053780,-500.0,0.00045255,60]
[381943136,1756431053789,-2600.0,0.00045479,60]
[381943137,1756431053799,-1030.08,0.00045479,120]
[381943138,1756431053808,-1766.85,0.00045479,120]
[381943139,1756431053819,-414.32655352,0.000455,120]
[381943140,1756431053828,-362.47509418,0.00045511,120]
[381943141,1756431053837,-613.43645,0.000457,120]
[381943142,1756431053846,-1030.08,0.00045753,120]
[381943143,1756431053855,-1000.0,0.00045999,120]
[381943144,1756431053865,-477.006,0.00046026,75]
[381943145,1756431053875,-1030.08,0.00046027,120]
[381943146,1756431053884,-1766.85,0.00046027,120]
[381943147,1756431053893,-806.0,0.00046123,60]
[381943148,1756431053903,-208.0,0.0004623,30]
[381943149,1756431053914,-200.0,0.00046243,120]
[381943150,1756431053923,-1030.08,0.00046301,120]
[381943151,1756431053932,-2600.0,0.00046575,60]
[381943152,1756431053941,-1030.08,0.00046575,120]
[381943153,1756431053950,-1766.85,0.00046575,120]
[381943154,1756431053960,-1058.03550058,0.00046844,28]
[381943155,1756431053969,-1030.08,0.00046849,120]
[381943156,1756431053978,-500.0,0.00046849,30]
[381943157,1756431053987,-1000.0,0.00046999,120]
[381943158,1756431053996,-1000.0,0.00047,120]
[381943159,1756431054006,-1030.08,0.00047123,120]
[381943160,1756431054015,-1766.85,0.00047123,120]
[381943161,1756431054024,-496.16415,0.000472,120]
[381943162,1756431054033,-156.0,0.000473,120]
[381943163,1756431054043,-1030.08,0.00047397,120]
[381943164,1756431054052,-200.0,0.00047443,120]
[381943165,1756431054062,-1030.08,0.00047671,120]
[381943166,1756431054071,-1766.85,0.00047671,120]
[381943167,1756431054080,-2600.0,0.00047671,60]
[381943168,1756431054089,-153.351177,0.00047674,7]
[381943169,1756431054098,-154.149394,0.00047674,7]
[381943170,1756431054107,-157.732642,0.00047674,7]
[381943171,1756431054116,-184.021414,0.00047674,7]
[381943172,1756431054125,-613.43645,0.000477,120]
[381943173,1756431054135,-208.0,0.0004777,30]
[381943174,1756431054144,-2151.0,0.00047833,2]
[381943175,1756431054152,-632.0,0.00047833,2]
[381943176,1756431054162,-409.0,0.00047833,2]
[381943177,1756431054172,-409.0,0.00047833,2]
[381943178,1756431054181,-400.0,0.0004789,120]
[381943179,1756431054190,-538.0,0.00047926,90]
[381943180,1756431054200,-1030.08,0.00047945,120]
[381943181,1756431054209,-1000.0,0.00047999,120]
[381943182,1756431054218,-1000.0,0.00048,120]
[381943183,1756431054227,-1208.76054378,0.000481,120]
[381943184,1756431054236,-1030.08,0.00048219,120]
[381943185,1756431054245,-1766.85,0.00048219,120]
[381943186,1756431054254,-538.0,0.00048329,90]
[381943187,1756431054263,-1030.08,0.00048493,120]
[381943188,1756431054273,-362.47509418,0.00048608,120]
[381943189,1756431054282,-4000.0,0.00048664,8]
[381943190,1756431054291,-1030.08,0.00048767,120]
[381943191,1756431054301,-1766.85,0.00048767,120]
[381943192,1756431054310,-2600.0,0.00048767,60]
[381943193,1756431054320,-73731.58186632,0.00048898,120]
[381943194,1756431054329,-2264.10087164,0.00048998,35]
[381943195,1756431054338,-1000.0,0.00048999,120]
[381943196,1756431054347,-2183.31810187,0.00048999,35]
[381943197,1756431054356,-3000.0,0.00049,20]
[381943198,1756431054366,-725.0,0.00049,120]
[381943199,1756431054375,-736.64373305,0.00049,120]
[381943200,1756431054385,-1000.0,0.00049,120]
[381943201,1756431054394,-2105.41764886,0.00049014,30]
[381943202,1756431054405,-301.82369365,0.00049014,30]
[381943203,1756431054414,-154.88747681,0.00049014,30]
[381943204,1756431054424,-181.08010149,0.00049014,30]
[381943205,1756431054434,-151.15117371,0.00049014,30]
[381943206,1756431054444,-1003.73084522,0.00049014,30]
[381943207,1756431054454,-262.071168,0.00049014,30]
[381943208,1756431054464,-519.72023464,0.00049014,30]
[381943209,1756431054474,-153.04630507,0.00049014,30]
[381943210,1756431054483,-256.4419395,0.00049014,30]
[381943211,1756431054493,-1030.08,0.00049041,120]
[381943212,1756431054503,-1341.2306797,0.00049147,61]
[381943213,1756431054512,-496.16415,0.000492,120]
[381943214,1756431054522,-2030.296672,0.0004925,54]
[381943215,1756431054532,-151.0,0.0004925,54]
[381943216,1756431054542,-300.0,0.0004925,54]
[381943217,1756431054552,-174.61919141,0.0004925,54]
[381943218,1756431054561,-151.0,0.0004925,54]
[381943219,1756431054572,-2001.29199917,0.0004925,54]
[381943220,1756431054582,-1000.0,0.0004925,54]
[381943221,1756431054591,-250.0,0.0004925,54]
[381943222,1756431054601,-500.0,0.0004925,54]
[381943223,1756431054611,-151.0,0.0004925,54]
[381943224,1756431054620,-250.0,0.0004925,54]
[381943225,1756431054630,-208.0,0.0004931,30]
[381943226,1756431054639,-1957.856,0.00049313,30]
[381943227,1756431054649,-182.84076622,0.00049313,30]
[381943228,1756431054660,-151.0,0.00049313,30]
[381943229,1756431054671,-300.0,0.00049313,30]
[381943230,1756431054682,-151.0,0.00049313,120]
[381943231,1756431054693,-300.0,0.00049313,120]
[381943232,1756431054703,-162.380719,0.00049313,30]
[381943233,1756431054713,-168.3888056,0.00049313,120]
[381943234,1756431054722,-151.0,0.00049313,30]
[381943235,1756431054732,-151.0,0.00049313,120]
[381943236,1756431054742,-2000.0,0.00049313,30]
[381943237,1756431054752,-2000.0,0.00049313,120]
[381943238,1756431054762,-1000.0,0.00049313,30]
[381943239,1756431054772,-1000.0,0.00049313,120]
[381943240,1756431054782,-151.0,0.00049313,30]
[381943241,1756431054791,-165.75526978,0.00049313,120]
[381943242,1756431054800,-250.0,0.00049313,30]
[381943243,1756431054813,-250.0,0.00049313,120]
[381943244,1756431054823,-500.0,0.00049313,30]
[381943245,1756431054833,-500.0,0.00049313,120]
[381943246,1756431054842,-151.0,0.00049313,30]
[381943247,1756431054853,-151.0,0.00049313,120]
[381943248,1756431054863,-250.0,0.00049313,30]
[381943249,1756431054872,-250.0,0.00049313,120]
[381943250,1756431054882,-151.0,0.00049314,30]
[381943251,1756431054893,-151.0,0.00049314,30]
[381943252,1756431054904,-300.0,0.00049314,30]
[381943253,1756431054916,-1888.0,0.00049314,30]
[381943254,1756431054925,-151.0,0.00049314,120]
[381943255,1756431054935,-151.0,0.00049314,120]
[381943256,1756431054944,-300.0,0.00049314,120]
[381943257,1756431054954,-151.0,0.00049314,30]
[381943258,1756431054964,-156.587,0.00049314,120]
[381943259,1756431054973,-151.0,0.00049314,30]
[381943260,1756431054982,-151.0,0.00049314,120]
[381943261,1756431054992,-2000.0,0.00049314,30]
[381943262,1756431055001,-151.33152473,0.00049314,30]
[381943263,1756431055012,-2000.0,0.00049314,120]
[381943264,1756431055022,-1000.0,0.00049314,30]
[381943265,1756431055031,-1000.0,0.00049314,120]
[381943266,1756431055042,-151.0,0.00049314,30]
[381943267,1756431055052,-151.0,0.00049314,120]
[381943268,1756431055061,-250.0,0.00049314,30]
[381943269,1756431055071,-250.0,0.00049314,120]
[381943270,1756431055080,-500.0,0.00049314,30]
[381943271,1756431055089,-500.0,0.00049314,120]
[381943272,1756431055098,-151.0,0.00049314,30]
[381943273,1756431055108,-151.0,0.00049314,120]
[381943274,1756431055117,-250.0,0.00049314,30]
[381943275,1756431055127,-250.0,0.00049314,120]
[381943276,1756431055136,-500.0,0.00049315,30]
[381943277,1756431055146,-1030.08,0.00049315,120]
[381943278,1756431055156,-1766.85,0.00049315,120]
[381943279,1756431055165,-5602.38627739,0.000494,120]
[381943280,1756431055175,-990.05,0.000494,10]
[381943281,1756431055184,-537.7127,0.000495,120]
[381943282,1756431055193,-1030.08,0.00049589,120]
[381943283,1756431055203,-200.0,0.000497,120]
[381943284,1756431055212,-482.46867,0.000497,120]
[381943285,1756431055222,-788.70401,0.000497,120]
[381943286,1756431055231,-613.43645,0.000497,120]
[381943287,1756431055241,-2600.0,0.00049863,60]
[381943288,1756431055250,-1030.08,0.00049863,120]
[381943289,1756431055260,-1766.85,0.00049863,120]
[381943290,1756431055269,-500.0,0.0005,120]
[381943291,1756431055278,-99999.999999,0.0005,120]
[381943292,1756431055288,-264.29152317,0.0005,120]
[381943293,1756431055297,-530.21713478,0.0005,10]
[381943294,1756431055306,-199.0,0.0005,7]
[381943295,1756431055316,-1000.10512375,0.0005,120]
[381943296,1756431055325,-361.58645908,0.0005,120]
[381943297,1756431055334,-200.0,0.0005,120]
[381943298,1756431055344,-400.0,0.0005,120]
[381943299,1756431055353,-1050.55,0.0005,60]
[381943300,1756431055363,-6000.0,0.0005,30]
[381943301,1756431055373,-232.53539143,0.0005,3]
[381943302,1756431055383,-1300.68469804,0.0005,120]
[381943303,1756431055392,-224.85625381,0.0005,120]
[381943304,1756431055402,-2498.87492822,0.0005,120]
[381943305,1756431055412,-12710.44222334,0.0005,3]
[381943306,1756431055422,-220.09044882,0.0005,30]
[381943307,1756431055432,-444.54251786,0.0005,120]
[381943308,1756431055441,-1000.0,0.0005,120]
[381943309,1756431055450,-156.0,0.0005,120]
[381943310,1756431055460,-1000.0,0.0005,120]
[381943311,1756431055469,-425.52029335,0.0005,3]
[381943312,1756431055479,-425.52029335,0.0005,30]
[381943313,1756431055488,-160.0,0.0005,3]
[381943314,1756431055498,-160.0,0.0005,120]
[381943315,1756431055508,-845.47023312,0.0005,3]
[381943316,1756431055517,-845.47023312,0.0005,120]
[381943317,1756431055526,-845.47023312,0.0005,30]
[381943318,1756431055536,-529.67291817,0.0005,3]
[381943319,1756431055545,-417.15472785,0.0005,3]
[381943320,1756431055555,-160.0,0.0005,120]
[381943321,1756431055564,-160.0,0.0005,3]
[381943322,1756431055573,-217.27834477,0.0005,3]
[381943323,1756431055583,-217.27834477,0.0005,120]
[381943324,1756431055592,-1030.25716466,0.00050136,120]
[381943325,1756431055601,-205.17113,0.000502,120]
[381943326,1756431055611,-200.0,0.000502,120]
[381943327,1756431055621,-1766.85,0.0005041,120]
[381943328,1756431055630,-236.72247,0.000505,120]
[381943329,1756431055639,-538.0,0.00050745,120]
[381943330,1756431055649,-206.64747,0.000508,120]
[381943331,1756431055658,-2151.0,0.00050833,120]
[381943332,1756431055667,-632.0,0.00050833,120]
[381943333,1756431055774,-409.0,0.00050833,2]
[381943334,1756431055785,-409.0,0.00050833,120]
[381943335,1756431055794,-1766.86739355,0.00050958,120]
[381943336,1756431055804,-2600.0,0.00050959,60]
[381943337,1756431055813,-1000.0,0.00050999,120]
[381943338,1756431055823,-1000.0,0.00051,120]
[381943339,1756431055835,-3000.0,0.00051,85]
[381943340,1756431055844,-3000.0,0.0005101,85]
[381943341,1756431055853,-3000.0,0.0005102,85]
[381943342,1756431055862,-3000.0,0.0005103,85]
[381943343,1756431055871,-3000.0,0.0005104,85]
[381943344,1756431055881,-3000.0,0.0005105,85]
[381943345,1756431055890,-3000.0,0.0005106,85]
[381943346,1756431055900,-3000.0,0.0005107,85]
[381943347,1756431055909,-3157.272036,0.0005108,85]
[381943348,1756431055919,-903141.83660304,0.00051111,30]
[381943349,1756431056037,-377.42754493,0.00019178,2]
[381943350,1756431056047,-480.0,0.00020547,2]
[381943351,1756431056056,-480.0,0.00020821,2]
[381943352,1756431056065,-480.0,0.00021095,2]
[381943353,1756431056075,-480.0,0.00021369,2]
[381943354,1756431056084,-217.27834477,0.00028,3]
[381943355,1756431056093,-217.27834477,0.00029,10]
[381943356,1756431056102,-232.64478309,0.00033,7]
[381943357,1756431056111,-232.64478309,0.0004,120]
[381943358,1756431056121,-217.27834477,0.0004,7]
[381943359,1756431056130,-232.64478309,0.0004,30]
[381943360,1756431056139,-232.64478309,0.0005,3]
[381943361,1756431056149,-217.27834477,0.0005,30]
[381943362,1756431056158,-9920.03784254,0.00051111,30]
[381943363,1756431056169,-86938.12555442,0.00051111,30]
[381943364,1756431056179,-496.16416,0.000512,120]
[381943365,1756431056188,-890.93003954,0.000517,120]
[381943366,1756431056198,-362.47509418,0.00051705,120]
[381943367,1756431056207,-500.0,0.00051781,30]
[381943368,1756431056217,-200.0,0.00051781,120]
[381943369,1756431056226,-200.0,0.00051781,120]
[381943370,1756431056235,-200.0,0.00051781,120]
[381943371,1756431056244,-200.0,0.00051781,120]
[381943372,1756431056253,-200.0,0.00051781,120]
[381943373,1756431056262,-212.54555804,0.00051781,120]
[381943374,1756431056271,-400.0,0.0005189,120]
[381943375,1756431056280,-6551.51254691,0.00052,120]
[381943376,1756431056290,-300.0,0.00052,120]
[381943377,1756431056300,-1000.0,0.00052,120]
[381943378,1756431056309,-1000.0,0.00052,120]
[381943379,1756431056318,-1000.0,0.00052,120]
[381943380,1756431056328,-609.0,0.00052055,120]
[381943381,1756431056337,-2600.0,0.00052055,60]
[381943382,1756431056346,-158.7199,0.00052226,2]
[381943383,1756431056355,-156.0,0.000528,120]
[381943384,1756431056364,-1000.0,0.00053,120]
[381943385,1756431056374,-1000.0,0.00053,120]
[381943386,1756431056383,-2249.73,0.00053,14]
[381943387,1756431056393,-2600.0,0.00053151,60]
[381943388,1756431056402,-1058.03550058,0.00053785,28]
[381943389,1756431056411,-2151.0,0.00053833,120]
[381943390,1756431056420,-632.0,0.00053833,120]
[381943391,1756431056430,-397.106,0.00053833,2]
[381943392,1756431056440,-409.0,0.00053833,120]
[381943393,1756431056449,-680.40703159,0.00054,120]
[381943394,1756431056459,-1000.0,0.00054,120]
[381943395,1756431056468,-3387.64,0.00054,14]
[381943396,1756431056478,-744.3,0.00054,7]
[381943397,1756431056487,-2600.0,0.00054247,60]
[381943398,1756431056498,-500.0,0.0005437,30]
[381943399,1756431056508,-400.0,0.000544,120]
[381943400,1756431056529,-14607.64870474,0.0005444,30]
[381943401,1756431056540,-1000.0,0.0005444,30]
[381943402,1756431056554,-49775.60552083,0.0005444,30]
[381943403,1756431056645,-480.0,0.00021643,2]
[381943404,1756431056654,-480.0,0.00021917,2]
[381943405,1756431056664,-480.0,0.00022191,2]
[381943406,1756431056673,-480.0,0.00022465,2]
[381943407,1756431056682,-480.0,0.00022739,2]
[381943408,1756431056692,-480.0,0.00023013,2]
[381943409,1756431056701,-480.0,0.00023287,2]
[381943410,1756431056710,-216.18903889,0.000259,7]
[381943411,1756431056719,-217.27834477,0.00029,10]
[381943412,1756431056728,-232.64478309,0.00029,10]
[381943413,1756431056738,-216.18903889,0.00031,30]
[381943414,1756431056747,-216.18903889,0.00033,10]
[381943415,1756431056757,-216.18903889,0.0004,3]
[381943416,1756431056766,-232.64478309,0.0004,7]
[381943417,1756431056776,-232.64478309,0.0005,120]
[381943418,1756431056785,-232.64478309,0.0005,30]
[381943419,1756431056795,-168126.09415731,0.0005444,30]
[381943420,1756431056808,-148791.65161712,0.0005444,30]
[381943421,1756431056819,-362.47509418,0.00054803,120]
[381943422,1756431056829,-546.0777778,0.00055,120]
[381943423,1756431056838,-1000.0,0.00055,120]
[381943424,1756431056847,-150.0,0.00055,120]
[381943425,1756431056857,-205.6514676,0.00055,120]
[381943426,1756431056867,-514.64457455,0.00055,120]
[381943427,1756431056877,-1000.0,0.00055,2]
[381943428,1756431056886,-2506.0,0.00055,60]
[381943429,1756431056896,-1000.0,0.00055,120]
[381943430,1756431056905,-2498.31484981,0.00055,120]
[381943431,1756431056915,-800.0,0.00055,120]
[381943432,1756431056924,-1000.0,0.00055,120]
[381943433,1756431056934,-875.43807656,0.00055343,120]
[381943434,1756431056943,-348.76640775,0.00055422,120]
[381943435,1756431056953,-156.0,0.000555,120]
[381943436,1756431056963,-1000.0,0.00056,120]
[381943437,1756431056972,-1000.0,0.00056,120]
[381943438,1756431056982,-1034.76,0.00056,60]
[381943439,1756431056991,-2151.0,0.00056833,120]
[381943440,1756431057000,-632.0,0.00056833,120]
[381943441,1756431057010,-409.0,0.00056833,120]
[381943442,1756431057019,-1897.58231626,0.00057,120]
[381943443,1756431057029,-1000.0,0.00057,120]
[381943444,1756431057038,-500.0,0.00057088,120]
[381943445,1756431057047,-410946.33428591,0.00057444,30]
[381943446,1756431057058,-22542.85270927,0.00057444,30]
[381943447,1756431057138,-187.08415204,0.00023561,2]
[381943448,1756431057148,-1136.93494432,0.0002479,10]
[381943449,1756431057160,-651.37505568,0.0002479,10]
[381943450,1756431057169,-151.0,0.00024931,7]
[381943451,1756431057179,-216.18903889,0.00025,10]
[381943452,1756431057188,-232.64478309,0.00028,3]
[381943453,1756431057198,-232.64478309,0.00029,10]
[381943454,1756431057207,-154.452589,0.00030142,7]
[381943455,1756431057217,-216.18903889,0.00032,7]
[381943456,1756431057226,-216.18903889,0.0004,120]
[381943457,1756431057235,-216.18903889,0.0004,30]
[381943458,1756431057245,-216.18903889,0.0004,7]
[381943459,1756431057256,-216.18903889,0.0005,3]
[381943460,1756431057265,-216.18903889,0.0005,120]
[381943461,1756431057275,-20820.34194691,0.00057444,30]
[381943462,1756431057286,-6335.45604206,0.00057444,30]
[381943464,1756431065240,159.28056,0.00013699,2]
[381943465,1756431351933,153.01,0.0003015,60]
[381943466,1756431671420,1949.8,0.0002739,120]
[381943468,1756432006373,159.233838,0.00013699,2]
[381943526,1756432231922,-2004.74525454,0.00019078,2]
[381943528,1756432231933,-1134.0,0.00019177,2]
[381943530,1756432231942,-300.0,0.00019177,2]
[381943532,1756432231952,-1200.0,0.00019177,2]
[381943534,1756432231961,-480.0,0.00019178,2]
[381943536,1756432231971,-601.62847111,0.00019178,2]
[381943538,1756432231982,-486.79915859,0.00019178,2]
[381943540,1756432231991,-484.75862953,0.00019178,2]
[381943542,1756432232001,-480.0,0.00019178,2]
[381943544,1756432232011,-347.06043158,0.00019452,2]
[381943546,1756432232020,-325.25128666,0.00019452,2]
[381943548,1756432232029,-159.64088103,0.00019561,20]
[381943576,1756432237928,-140.35911897,0.00019561,20]
[381943577,1756432237939,-300.0,0.00019561,20]
[381943578,1756432237949,-300.0,0.00019561,20]
[381943579,1756432237958,-300.0,0.00019561,20]
[381943580,1756432237968,-300.0,0.00019561,20]
[381943581,1756432237977,-300.0,0.00019561,20]
[381943582,1756432237987,-300.0,0.00019561,20]
[381943583,1756432237996,-300.0,0.00019561,20]
[381943584,1756432238006,-300.0,0.00019561,20]
[381943585,1756432238015,-300.0,0.00019561,20]
[381943586,1756432238025,-300.0,0.00019561,20]
[381943587,1756432238034,-170.2104708,0.00019863,2]
[381943588,1756432238044,-1085.87419314,0.000199,2]
[381943589,1756432238053,-160.0,0.0002,7]
[381943590,1756432238062,-160.0,0.0002,7]
[381943592,1756432238071,-12710.44222334,0.00020804,2]
[381943593,1756432238080,-160.0,0.00020805,2]
[381943594,1756432238089,-160.0,0.00020805,2]
[381943595,1756432238099,-217.27834477,0.00020805,2]
[381943596,1756432238108,-160.0,0.00020805,2]
[381943597,1756432238117,-425.52029335,0.00020805,2]
[381943598,1756432238126,-160.0,0.00020805,2]
[381943599,1756432238135,-232.64478309,0.00020805,2]
[381943600,1756432238144,-160.0,0.00020805,2]
[381943601,1756432238153,-216.18903889,0.00020805,2]
[381943602,1756432238162,-845.47023312,0.00020805,2]
[381943603,1756432238171,-1085.87419312,0.00021389,2]
[381943604,1756432238180,-1085.87419312,0.00022879,2]
[381943605,1756432238190,-3041.1544499,0.0002361,2]
[381943606,1756432238199,-216.18903889,0.00024,7]
[381943607,1756432238208,-216.18903889,0.00024,7]
[381943608,1756432238217,-1085.87419312,0.00024368,2]
[381943609,1756432238227,-194.42560028,0.00024853,8]
[381943610,1756432238236,-406.213,0.00024853,8]
[381943611,1756432238245,-159.233838,0.00024907,2]
[381943612,1756432238254,-295.517849,0.00025,5]
[381943613,1756432238263,-216.18903889,0.00025,10]
[381943614,1756432238272,-216.18903889,0.00025,10]
[381943615,1756432238282,-1085.87419312,0.00025857,4]
[381943616,1756432238290,-975.528,0.00026873,2]
[381943617,1756432238299,-632.943,0.00026873,2]
[381943618,1756432238308,-2154.531,0.00026873,2]
[381943619,1756432238317,-409.903,0.00026873,2]
[381943620,1756432238326,-425.52029335,0.00027,7]
[381943621,1756432238335,-425.52029335,0.00027,7]
[381943622,1756432238345,-1085.87419312,0.00027346,7]
[381943623,1756432238358,-500.0,0.00027397,5]
[381943624,1756432238368,-166.49,0.0002741,15]
[381943625,1756432238377,-166.49,0.0002751,15]
[381943626,1756432238386,-166.49,0.0002761,15]
[381943627,1756432238395,-166.49,0.0002771,15]
[381943628,1756432238404,-166.49,0.0002781,15]
[381943629,1756432238414,-166.50531786,0.0002791,15]
[381943630,1756432238423,-160.0,0.00028,3]
[381943631,1756432238432,-160.0,0.00028,7]
[381943632,1756432238441,-160.0,0.00028,3]
[381943633,1756432238450,-160.0,0.00028,7]
[381943634,1756432238459,-160.0,0.00028,3]
[381943635,1756432238468,-160.0,0.00028,7]
[381943636,1756432238477,-160.0,0.00028,3]
[381943637,1756432238486,-160.0,0.00028,3]
[381943638,1756432238495,-160.0,0.00028,7]
[381943639,1756432238505,-160.0,0.00028,3]
[381943640,1756432238514,-160.0,0.00028,7]
[381943641,1756432238523,-160.0,0.00028,3]
[381943642,1756432238532,-160.0,0.00028,7]
[381943643,1756432238542,-452.71,0.00028,7]
[381943644,1756432238551,-232.64478309,0.00028,7]
[381943645,1756432238561,-217.27834477,0.00028,7]
[381943646,1756432238570,-232.64478309,0.00028,7]
[381943647,1756432238579,-217.27834477,0.00028,7]
[381943648,1756432238588,-425.52029335,0.00028,10]
[381943649,1756432238597,-845.47023312,0.00028,7]
[381943650,1756432238606,-845.47023312,0.00028,7]
[381943651,1756432238616,-500.0,0.000286,2]
[381943652,1756432238625,-1085.87419312,0.00028836,10]
[381943653,1756432238634,-160.0,0.00029,10]
[381943654,1756432238643,-232.64478309,0.00029,10]
[381943655,1756432238653,-217.27834477,0.00029,10]
[381943656,1756432238663,-232.64478309,0.00029,10]
[381943657,1756432238671,-217.27834477,0.00029,10]
[381943658,1756432238681,-845.47023312,0.00029,10]
[381943659,1756432238690,-845.47023312,0.00029,10]
[381943660,1756432238700,-503.73719567,0.00029148,2]
[381943661,1756432238709,-177.816769,0.00029589,120]
[381943662,1756432238718,-200.0,0.00029689,120]
[381943663,1756432238727,-718.68,0.00029843,10]
[381943664,1756432238737,-1370.48,0.00029843,10]
[381943665,1756432238746,-68897.0838928,0.00029854,2]
[381943666,1756432238755,-49705.1012292,0.00029854,2]
[381943667,1756432238765,-974.0,0.00029873,2]
[381943668,1756432238774,-632.0,0.00029873,2]
[381943669,1756432238783,-2151.0,0.00029873,2]
[381943670,1756432238792,-409.0,0.00029873,2]
[381943671,1756432238801,-160.0,0.0003,10]
[381943672,1756432238810,-160.0,0.0003,10]
[381943673,1756432238820,-506.55,0.00030149,60]
[381943674,1756432238830,-631.3,0.00030215,60]
[381943675,1756432238840,-1000.2,0.00030215,30]
[381943676,1756432238849,-9477.28686741,0.00030215,2]
[381943677,1756432238858,-250.0,0.00030215,10]
[381943678,1756432238867,-250.0,0.00030215,10]
[381943679,1756432238877,-250.0,0.00030215,10]
[381943680,1756432238885,-388.321994,0.00030215,10]
[381943681,1756432238894,-1085.87419312,0.00030325,13]
[381943682,1756432238903,-155.0,0.00031,120]
[381943683,1756432238912,-1085.87419312,0.00031814,17]
[381943684,1756432238921,-6450.0,0.00032,120]
[381943685,1756432238931,-500.0,0.00032202,7]
[381943686,1756432238940,-974.0,0.00032873,2]
[381943687,1756432238949,-632.0,0.00032873,2]
[381943688,1756432238958,-2151.0,0.00032873,2]
[381943689,1756432238968,-409.0,0.00032873,2]
[381943690,1756432238977,-1000.0,0.00032877,5]
[381943691,1756432238986,-158.33,0.000329,7]
[381943692,1756432238995,-398.77,0.000329,14]
[381943693,1756432239004,-187.76192617,0.000332,117]
[381943694,1756432239013,-1085.87419312,0.00033303,20]
[381943695,1756432239023,-155.0,0.000342,120]
[381943696,1756432239032,-1085.87419312,0.00034793,23]
[381943697,1756432239042,-200.0,0.000352,120]
[381943698,1756432239051,-907.9617,0.000352,120]
[381943699,1756432239061,-974.0,0.00035873,2]
[381943700,1756432239071,-632.0,0.00035873,2]
[381943701,1756432239080,-2151.0,0.00035873,2]
[381943702,1756432239089,-409.0,0.00035873,2]
[381943703,1756432239099,-159.233838,0.00036115,2]
[381943704,1756432239108,-1085.87419312,0.00036282,26]
[381943705,1756432239118,-907.9617,0.000372,120]
[381943706,1756432239127,-155.0,0.000375,120]
[381943707,1756432239137,-1085.87419312,0.00037771,29]
[381943708,1756432239146,-187.76192616,0.00037892,120]
[381943709,1756432239155,-1412.06,0.00038356,120]
[381943710,1756432239164,-1500.0,0.00038356,5]
[381943711,1756432239174,-182.35965626,0.00038773,2]
[381943712,1756432239184,-160.0,0.00038863,3]
[381943713,1756432239194,-845.47023312,0.00038863,3]
[381943714,1756432239203,-13779.4167785,0.00038863,3]
[381943715,1756432239212,-9941.02024584,0.00038863,3]
[381943716,1756432239222,-974.0,0.00038873,2]
[381943718,1756432239231,-632.0,0.00038873,2]
[381943719,1756432239240,-2151.0,0.00038873,2]
[381943720,1756432239249,-409.0,0.00038873,2]
[381943722,1756432239259,-1412.06,0.00038904,120]
[381943723,1756432239268,-13779.4167785,0.0003898,3]
[381943724,1756432239277,-9941.02024584,0.0003898,3]
[381943725,1756432239286,-907.9617,0.000392,120]
[381943726,1756432239295,-1085.87419312,0.0003926,33]
[381943727,1756432239305,-1412.06,0.00039452,120]
[381943728,1756432239314,-845.47023312,0.00039452,120]
[381943729,1756432239323,-1412.06,0.0004,120]
[381943730,1756432239333,-1412.06,0.00040547,120]
[381943731,1756432239342,-155.0,0.000407,120]
[381943732,1756432239354,-1085.87419312,0.0004075,36]
[381943733,1756432239363,-13779.4167785,0.00041086,3]
[381943734,1756432239371,-9941.02024584,0.00041086,3]